[Event "Klatov Bazar Besiny Cup 2018"]
[Site "Klatovy"]
[Date "2018.07.02"]
[Round "3"]
[White "Vevera, Radek"]
[Black "Hollan, Martin"]
[Result "1/2-1/2"]
[ECO "B32"]
[WhiteElo "2064"]
[BlackElo "2341"]
[Annotator "NA"]
[PlyCount "103"]
[EventDate "2018.07.01"]
[EventType "swiss"]
[EventCountry "CZE"]
[SourceTitle "playchess.com"]
[Source "ChessBase"]
[SourceQuality "1"]
[TimeControl "40/7200:0"]

1. e4 {[%emt 0:00:00]} c5 {[%emt 0:03:03]} 2. Nf3 {[%emt 0:00:00]} Nc6 {[%emt 0:00:00]} 3. d4 {[%emt 0:00:00]} cxd4 {[%emt 0:00:00]} 4. Nxd4 {[%emt 0:00:00]} e5 {[%emt 0:00:00]} 5. Nb5 {[%emt 0:00:00]} a6 {[%emt 0:00:00]} 6. Nd6+ {[%emt 0:00:00]} Bxd6 {[%emt 0:00:00]} 7. Qxd6 {[%emt 0:00:00]} Qe7 {[%emt 0:00:00]} 8. Qd1 {[%emt 0:00:34]} Nf6 {[%emt 0:00:00]} 9. Nc3 {[%emt 0:00:41]} d6 {[%emt 0:00:00]} 10. Bg5 {[%emt 0:01:27]} Be6 {[%emt 0:00:00]} 11. Nd5 {[%emt 0:09:27]} Bxd5 {[%emt 0:00:00]} 12. exd5 {[%emt 0:00:00]} Nb8 {[%emt 0:00:00]} 13. Be2 {[%emt 0:02:29]} Nbd7 {[%emt 0:00:00]} 14. c4 {[%emt 0:02:23]} O-O {[%emt 0:00:00]} 15. O-O {[%emt 0:02:38]} Rfb8 {[%emt 0:00:00]} 16. b4 {[%emt 0:03:46]} b5 {[%emt 0:00:00]} 17. cxb5 {[%emt 0:10:09]} axb5 {[%emt 0:00:00]} 18. a4 {[%emt 0:00:00]} bxa4 {[%emt 0:00:00]} 19. Rxa4 {[%emt 0:00:15]} Rxa4 {[%emt 0:01:10]} 20. Qxa4 {[%emt 0:00:00]} h6 {[%emt 0:00:35]} 21. Bd2 {[%emt 0:17:07]} Nxd5 {[%emt 0:01:55]} 22. Rb1 {[%emt 0:02:26]} N7b6 {[%emt 0:02:02]} 23. Qb3 {[%emt 0:03:41]} Nc7 {[%emt 0:06:36]} 24. b5 {[%emt 0:03:44]} Ne6 {[%emt 0:01:10]} 25. Qg3 {[%emt 0:08:12]} Nd4 {[%emt 0:03:24]} 26. Bf1 {[%emt 0:00:02]} Qf6 {[%emt 0:01:46]} 27. Qd3 {[%emt 0:07:31]} Nd5 {[%emt 0:29:46]} 28. Qe4 {[%emt 0:16:07]} Qf5 {[%emt 0:04:25]} 29. Qxf5 {[%emt 0:01:51]} Nxf5 {[%emt 0:00:00]} 30. Ba5 {[%emt 0:00:04]} Nd4 {[%emt 0:00:00]} 31. Bc4 {[%emt 0:09:34]} Nb6 {[%emt 0:02:04]} 32. Bd3 {[%emt 0:02:05]} Kf8 {[%emt 0:02:34]} 33. Bb4 {[%emt 0:05:18]} Ke7 {[%emt 0:00:02]} 34. Ra1 {[%emt 0:00:00]} Nd5 {[%emt 0:00:40]} 35. Ra7+ {[%emt 0:00:00]} Ke6 {[%emt 0:00:00]} 36. Bc4 {[%emt 0:05:06]} Nxb5 {[%emt 0:06:53]} 37. Ra6 {[%emt 0:00:00]} Kf5 {[%emt 0:03:20]} 38. Bxd5 {[%emt 0:00:03]} Nc7 {[%emt 0:00:00]} 39. g4+ {[%emt 0:00:00]} Kxg4 {[%emt 0:02:41]} 40. Ra4 {[%emt 0:00:02]} Kf5 {[%emt 0:00:08]} 41. Bxf7 {[%emt 1:59:52]} Rb6 {[%emt 2:01:10]} 42. Ba5 {[%emt 0:00:20]} Rb1+ {[%emt 0:00:00]} 43. Kg2 {[%emt 0:00:00]} Ne6 {[%emt 0:00:00]} 44. Bxe6+ {[%emt 0:00:31]} Kxe6 {[%emt 0:00:00]} 45. Bd2 {[%emt 0:00:28]} Rb2 {[%emt 0:00:00]} 46. Be3 {[%emt 0:00:00]} d5 {[%emt 0:00:00]} 47. Ra6+ {[%emt 0:00:00]} Kf5 {[%emt 0:00:00]} 48. h4 {[%emt 0:00:47]} d4 {[%emt 0:00:00]} 49. Bc1 {[%emt 0:00:00]} Rc2 {[%emt 0:00:00]} 50. Ba3 {[%emt 0:00:25]} Ra2 {[%emt 0:00:00]} 51. Ra5 {[%emt 0:00:00]} Kg4 {[%emt 0:16:19]} 52. Rxe5 {[%emt 0:00:11]} 1/2-1/2

[Event "Klatov Bazar Besiny Cup 2018"]
[Site "Klatovy"]
[Date "2018.07.02"]
[Round "3"]
[White "Seemann, Jakub"]
[Black "Vyprachticky, David"]
[Result "0-1"]
[ECO "C67"]
[WhiteElo "1838"]
[BlackElo "2301"]
[Annotator "ChessBase"]
[PlyCount "132"]
[EventDate "2018.07.01"]
[EventType "swiss"]
[EventCountry "CZE"]
[SourceTitle "playchess.com"]
[Source "ChessBase"]
[SourceQuality "1"]
[TimeControl "40/7200:0"]

1. e4 {[%emt 0:00:00]} e5 {[%emt 0:04:48]} 2. Nf3 {[%emt 0:00:00]} Nc6 {[%emt 0:00:00]} 3. Bb5 {[%emt 0:00:00]} Nf6 {[%emt 0:00:09]} 4. O-O {[%emt 0:00:00]} Nxe4 {[%emt 0:00:00]} 5. Re1 {[%emt 0:00:00]} Nd6 {[%emt 0:00:00]} 6. Nxe5 {[%emt 0:00:00]} Be7 {[%emt 0:00:00]} 7. Bf1 {[%emt 0:00:12]} O-O {[%emt 0:00:00]} 8. d4 {[%emt 0:00:18]} Nf5 {[%emt 0:00:47]} 9. c3 {[%emt 0:00:18]} Nxe5 {[%emt 0:01:47]} 10. Rxe5 {[%emt 0:00:49]} d6 {[%emt 0:00:02]} 11. Re1 {[%emt 0:00:01]} d5 {[%emt 0:04:30]} 12. Nd2 {[%emt 0:01:38]} Nd6 {[%emt 0:04:16]} 13. Bd3 {[%emt 0:01:44]} Bf5 {[%emt 0:02:30]} 14. Bxf5 {[%emt 0:00:00]} Nxf5 {[%emt 0:00:00]} 15. Nf3 {[%emt 0:00:55]} Bd6 {[%emt 0:03:27]} 16. Qd3 {[%emt 0:04:19]} Ne7 {[%emt 0:03:41]} 17. Bg5 {[%emt 0:04:46]} f6 {[%emt 0:00:36]} 18. Bh4 {[%emt 0:02:43]} Qd7 {[%emt 0:01:35]} 19. Bg3 {[%emt 0:04:52]} Bxg3 {[%emt 0:00:41]} 20. hxg3 {[%emt 0:00:17]} Rae8 {[%emt 0:00:19]} 21. Re2 {[%emt 0:02:01]} Nc8 {[%emt 0:06:17]} 22. Rae1 {[%emt 0:00:59]} Nd6 {[%emt 0:00:00]} 23. Nd2 {[%emt 0:02:50]} Rxe2 {[%emt 0:00:37]} 24. Rxe2 {[%emt 0:00:40]} Re8 {[%emt 0:00:15]} 25. Rxe8+ {[%emt 0:00:50]} Qxe8 {[%emt 0:00:00]} 26. Kf1 {[%emt 0:04:30]} Qa4 {[%emt 0:01:47]} 27. Qb1 {[%emt 0:00:26]} Qb5+ {[%emt 0:00:16]} 28. Ke1 {[%emt 0:00:41]} g6 {[%emt 0:00:22]} 29. b3 {[%emt 0:01:19]} Qa5 {[%emt 0:03:45]} 30. Qb2 {[%emt 0:01:13]} Kf7 {[%emt 0:01:09]} 31. a4 {[%emt 0:02:40]} Qa6 {[%emt 0:02:30]} 32. Qc2 {[%emt 0:02:43]} b5 {[%emt 0:04:07]} 33. axb5 {[%emt 0:02:48]} Qa1+ {[%emt 0:00:27]} 34. Nb1 {[%emt 0:00:36]} Nxb5 {[%emt 0:00:44]} 35. Kd2 {[%emt 0:01:04]} Nd6 {[%emt 0:00:17]} 36. f3 {[%emt 0:07:55]} Qa6 {[%emt 0:00:00]} 37. Ke1 {[%emt 0:06:21]} Nf5 {[%emt 0:00:25]} 38. Kf2 {[%emt 0:01:23]} Qd6 {[%emt 0:05:55]} 39. f4 {[%emt 0:00:00]} c5 {[%emt 0:02:08]} 40. Qd2 {[%emt 0:04:53]} cxd4 {[%emt 0:00:00]} 41. g4 {[%emt 2:01:03]} dxc3 {[%emt 2:02:16]} 42. Nxc3 {[%emt 0:00:00]} Qc5+ {[%emt 0:00:00]} 43. Ke2 {[%emt 0:00:43]} Nd4+ {[%emt 0:00:54]} 44. Kd1 {[%emt 0:00:31]} Nxb3 {[%emt 0:03:53]} 45. Qxd5+ {[%emt 0:00:00]} Qxd5+ {[%emt 0:00:00]} 46. Nxd5 {[%emt 0:00:00]} Nc5 {[%emt 0:04:23]} 47. Ke2 {[%emt 0:00:05]} a5 {[%emt 0:04:05]} 48. Ke3 {[%emt 0:00:00]} Nd7 {[%emt 0:00:36]} 49. Kd4 {[%emt 0:00:09]} Ke6 {[%emt 0:05:05]} 50. Ne3 {[%emt 0:00:33]} a4 {[%emt 0:00:01]} 51. Kc4 {[%emt 0:01:00]} Kd6 {[%emt 0:02:36]} 52. Nc2 {[%emt 0:02:43]} Nc5 {[%emt 0:00:54]} 53. Nd4 {[%emt 0:00:06]} Ne6 {[%emt 0:01:10]} 54. Ne2 {[%emt 0:00:54]} a3 {[%emt 0:01:00]} 55. Kb3 {[%emt 0:00:00]} Kd5 {[%emt 0:00:00]} 56. Kxa3 {[%emt 0:00:00]} Ke4 {[%emt 0:00:12]} 57. g3 {[%emt 0:00:00]} Kf3 {[%emt 0:00:07]} 58. f5 {[%emt 0:00:00]} Nf8 {[%emt 0:00:30]} 59. Nd4+ {[%emt 0:01:48]} Kxg4 {[%emt 0:00:12]} 60. fxg6 {[%emt 0:00:18]} hxg6 {[%emt 0:00:00]} 61. Ne2 {[%emt 0:01:58]} Kf3 {[%emt 0:00:00]} 62. Nd4+ {[%emt 0:00:00]} Kxg3 {[%emt 0:00:00]} 63. Kb2 {[%emt 0:00:00]} f5 {[%emt 0:00:00]} 64. Kc2 {[%emt 0:00:00]} Kg2 {[%emt 0:00:00]} 65. Kd2 {[%emt 0:00:00]} f4 {[%emt 0:00:00]} 66. Ke2 {[%emt 0:00:00]} g5 {[%emt 0:00:00]} 0-1

[Event "Klatov Bazar Besiny Cup 2018"]
[Site "Klatovy"]
[Date "2018.07.03"]
[Round "4"]
[White "Neuman, Petr"]
[Black "Soural, Jan"]
[Result "1/2-1/2"]
[ECO "E77"]
[WhiteElo "2432"]
[BlackElo "2192"]
[Annotator "NA"]
[PlyCount "29"]
[EventDate "2018.07.01"]
[EventType "swiss"]
[EventCountry "CZE"]
[SourceTitle "playchess.com"]
[Source "ChessBase"]
[SourceQuality "1"]
[TimeControl "40/7200:0"]

1. c4 {[%emt 0:00:00]} Nf6 {[%emt 0:00:00]} 2. Nc3 {[%emt 0:00:00]} g6 {[%emt 0:00:00]} 3. e4 {[%emt 0:00:00]} d6 {[%emt 0:00:00]} 4. d4 {[%emt 0:00:00]} Bg7 {[%emt 0:00:00]} 5. f4 {[%emt 0:00:00]} O-O {[%emt 0:04:58]} 6. Nf3 {[%emt 0:04:56]} c5 {[%emt 0:00:00]} 7. d5 {[%emt 0:00:00]} e6 {[%emt 0:01:23]} 8. Be2 {[%emt 0:00:00]} exd5 {[%emt 0:00:08]} 9. cxd5 {[%emt 0:00:00]} Nbd7 {[%emt 0:03:51]} 10. O-O {[%emt 0:00:00]} Re8 {[%emt 0:00:39]} 11. Nd2 {[%emt 0:01:36]} c4 {[%emt 0:00:55]} 12. e5 {[%emt 0:01:24]} dxe5 {[%emt 0:05:01]} 13. Nxc4 {[%emt 0:01:07]} Nb6 {[%emt 0:03:10]} 14. Nxe5 {[%emt 0:39:29]} Nfxd5 {[%emt 0:11:30]} 15. Nxd5 {[%emt 0:03:09]} 1/2-1/2

[Event "Klatov Bazar Besiny Cup 2018"]
[Site "Klatovy"]
[Date "2018.07.03"]
[Round "4"]
[White "Hollan, Martin"]
[Black "Bartos, Jan"]
[Result "1-0"]
[ECO "A33"]
[WhiteElo "2341"]
[BlackElo "2153"]
[Annotator "NA"]
[PlyCount "63"]
[EventDate "2018.07.01"]
[EventType "swiss"]
[EventCountry "CZE"]
[SourceTitle "playchess.com"]
[Source "ChessBase"]
[SourceQuality "1"]
[TimeControl "40/7200:0"]

1. c4 {[%emt 0:01:20]} c5 {[%emt 0:00:00]} 2. Nc3 {[%emt 0:00:00]} Nc6 {[%emt 0:00:00]} 3. Nf3 {[%emt 0:00:00]} Nf6 {[%emt 0:00:00]} 4. d4 {[%emt 0:01:52]} cxd4 {[%emt 0:00:00]} 5. Nxd4 {[%emt 0:00:00]} e6 {[%emt 0:00:12]} 6. e4 {[%emt 0:00:03]} Bb4 {[%emt 0:00:16]} 7. Nxc6 {[%emt 0:00:46]} bxc6 {[%emt 0:05:17]} 8. Bd3 {[%emt 0:01:08]} d6 {[%emt 0:00:36]} 9. Qa4 {[%emt 0:02:37]} Qb6 {[%emt 0:10:55]} 10. Be3 {[%emt 0:00:53]} Bc5 {[%emt 0:02:51]} 11. Bxc5 {[%emt 0:00:00]} Qxc5 {[%emt 0:00:00]} 12. b4 {[%emt 0:00:00]} Qb6 {[%emt 0:02:11]} 13. O-O {[%emt 0:00:00]} e5 {[%emt 0:06:15]} 14. Nd5 {[%emt 0:03:52]} Nxd5 {[%emt 0:00:00]} 15. exd5 {[%emt 0:00:00]} Bd7 {[%emt 0:00:17]} 16. c5 {[%emt 0:00:47]} dxc5 {[%emt 0:01:53]} 17. bxc5 {[%emt 0:00:00]} Qxc5 {[%emt 0:00:38]} 18. Rac1 {[%emt 0:00:55]} Qxd5 {[%emt 0:02:38]} 19. Be4 {[%emt 0:05:34]} Qe6 {[%emt 0:03:26]} 20. Bxc6 {[%emt 0:02:56]} Rd8 {[%emt 0:01:35]} 21. Rfd1 {[%emt 0:00:44]} Bxc6 {[%emt 0:01:49]} 22. Rxd8+ {[%emt 0:00:00]} Kxd8 {[%emt 0:00:00]} 23. Rxc6 {[%emt 0:00:00]} Qd5 {[%emt 0:03:21]} 24. Rc1 {[%emt 0:00:38]} Ke7 {[%emt 0:01:52]} 25. Rd1 {[%emt 0:03:11]} Qb7 {[%emt 0:05:04]} 26. Qa3+ {[%emt 0:00:11]} Kf6 {[%emt 0:01:05]} 27. Rd6+ {[%emt 0:00:20]} Kf5 {[%emt 0:01:27]} 28. Qd3+ {[%emt 0:05:32]} Kg5 {[%emt 0:03:50]} 29. h4+ {[%emt 0:00:00]} Kxh4 {[%emt 0:00:31]} 30. Qg3+ {[%emt 0:00:00]} Kh5 {[%emt 0:00:00]} 31. Qxe5+ {[%emt 0:00:00]} g5 {[%emt 0:01:10]} 32. Qe2+ {[%emt 0:00:00]} 1-0

[Event "Klatov Bazar Besiny Cup 2018"]
[Site "Klatovy"]
[Date "2018.07.03"]
[Round "4"]
[White "Hausner, Ivan"]
[Black "Krzyzanowski, Marcin"]
[Result "1/2-1/2"]
[ECO "B98"]
[WhiteElo "2321"]
[BlackElo "2473"]
[Annotator "ChessBase"]
[PlyCount "138"]
[EventDate "2018.07.01"]
[EventType "swiss"]
[EventCountry "CZE"]
[SourceTitle "playchess.com"]
[Source "ChessBase"]
[SourceQuality "1"]
[TimeControl "40/7200:0"]

1. e4 {[%emt 0:00:00]} c5 {[%emt 0:00:00]} 2. Nf3 {[%emt 0:00:00]} d6 {[%emt 0:00:00]} 3. d4 {[%emt 0:00:00]} cxd4 {[%emt 0:00:00]} 4. Nxd4 {[%emt 0:00:00]} Nf6 {[%emt 0:00:00]} 5. Nc3 {[%emt 0:00:00]} a6 {[%emt 0:00:00]} 6. Bg5 {[%emt 0:00:00]} e6 {[%emt 0:00:27]} 7. f4 {[%emt 0:00:00]} h6 {[%emt 0:00:00]} 8. Bh4 {[%emt 0:00:00]} Be7 {[%emt 0:00:22]} 9. Qf3 {[%emt 0:00:00]} Qc7 {[%emt 0:00:00]} 10. O-O-O {[%emt 0:00:00]} Nbd7 {[%emt 0:00:00]} 11. Bd3 {[%emt 0:00:00]} g5 {[%emt 0:00:02]} 12. fxg5 {[%emt 0:00:00]} Ne5 {[%emt 0:00:00]} 13. Qe2 {[%emt 0:00:00]} Nfg4 {[%emt 0:00:51]} 14. Nf3 {[%emt 0:00:00]} Nxf3 {[%emt 0:02:51]} 15. gxf3 {[%emt 0:00:00]} hxg5 {[%emt 0:00:23]} 16. Bg3 {[%emt 0:00:00]} Ne5 {[%emt 0:01:33]} 17. h4 {[%emt 0:00:07]} gxh4 {[%emt 0:03:07]} 18. f4 {[%emt 0:00:02]} Nxd3+ {[%emt 0:01:35]} 19. Rxd3 {[%emt 0:01:13]} Bd7 {[%emt 0:01:41]} 20. Bf2 {[%emt 0:00:00]} Qa5 {[%emt 0:03:26]} 21. Rdh3 {[%emt 0:02:33]} Bc6 {[%emt 0:04:30]} 22. Bxh4 {[%emt 0:00:48]} Bxh4 {[%emt 0:01:13]} 23. Rxh4 {[%emt 0:02:39]} Rxh4 {[%emt 0:00:00]} 24. Rxh4 {[%emt 0:00:00]} O-O-O {[%emt 0:00:00]} 25. Rh7 Be8 {[%emt 0:22:04]} 26. Qe3 {[%emt 0:03:42]} Kb8 {[%emt 0:02:21]} 27. a3 {[%emt 0:00:30]} Qc7 {[%emt 0:00:16]} 28. f5 {[%emt 0:03:14]} Qa5 {[%emt 0:05:47]} 29. fxe6 {[%emt 0:00:33]} fxe6 {[%emt 0:00:00]} 30. Kb1 {[%emt 0:01:00]} Bc6 {[%emt 0:00:18]} 31. Qd4 {[%emt 0:01:50]} Qg5 {[%emt 0:05:08]} 32. Qg7 {[%emt 0:02:57]} Qxg7 {[%emt 0:01:08]} 33. Rxg7 {[%emt 0:00:00]} Rh8 {[%emt 0:00:53]} 34. Kc1 {[%emt 0:06:30]} Rh2 {[%emt 0:01:28]} 35. Rg6 {[%emt 0:00:00]} Bd7 {[%emt 0:00:25]} 36. Rg7 {[%emt 0:03:12]} Kc8 {[%emt 0:00:47]} 37. Kd1 {[%emt 0:00:28]} Bc6 {[%emt 0:00:58]} 38. Rg3 {[%emt 0:02:22]} Kd7 {[%emt 0:00:42]} 39. Rg7+ {[%emt 0:01:04]} Kd8 {[%emt 0:00:25]} 40. Rf7 {[%emt 0:01:01]} Ke8 {[%emt 0:01:52]} 41. Rg7 {[%emt 2:02:14]} Rf2 {[%emt 2:01:22]} 42. Rh7 {[%emt 0:00:19]} Rg2 {[%emt 0:01:36]} 43. Rc7 {[%emt 0:01:43]} Kf8 {[%emt 0:04:08]} 44. Rh7 {[%emt 0:00:38]} Rg7 {[%emt 0:02:58]} 45. Rxg7 {[%emt 0:00:00]} Kxg7 {[%emt 0:00:00]} 46. e5 {[%emt 0:00:00]} dxe5 {[%emt 0:01:20]} 47. Kd2 {[%emt 0:00:00]} Kf6 {[%emt 0:00:11]} 48. Ke3 {[%emt 0:00:00]} Ke7 {[%emt 0:00:05]} 49. Na2 {[%emt 0:00:00]} Kd6 {[%emt 0:00:21]} 50. Nc1 {[%emt 0:00:00]} Be8 {[%emt 0:01:25]} 51. Nb3 {[%emt 0:06:00]} Bg6 {[%emt 0:02:36]} 52. c4 {[%emt 0:00:00]} b5 {[%emt 0:01:00]} 53. Nd2 {[%emt 0:00:21]} bxc4 {[%emt 0:00:11]} 54. Nxc4+ {[%emt 0:00:00]} Kd5 {[%emt 0:00:00]} 55. Nb6+ {[%emt 0:00:00]} Kc5 {[%emt 0:00:00]} 56. Nd7+ {[%emt 0:00:00]} Kd6 {[%emt 0:00:00]} 57. Nb6 {[%emt 0:00:00]} Be8 {[%emt 0:00:54]} 58. Nc4+ {[%emt 0:00:00]} Kd5 {[%emt 0:00:00]} 59. Nd2 {[%emt 0:00:00]} Bg6 {[%emt 0:01:17]} 60. Nf1 {[%emt 0:00:00]} Bc2 {[%emt 0:02:50]} 61. Kd2 {[%emt 0:00:20]} Bb1 {[%emt 0:00:15]} 62. Ke3 {[%emt 0:03:05]} e4 {[%emt 0:01:05]} 63. Kd2 {[%emt 0:00:00]} Bd3 {[%emt 0:03:31]} 64. Ne3+ {[%emt 0:00:00]} Kd4 {[%emt 0:02:00]} 65. Ng4 {[%emt 0:00:00]} a5 {[%emt 0:00:21]} 66. Ne3 {[%emt 0:00:00]} Ke5 {[%emt 0:00:51]} 67. Nd1 {[%emt 0:00:00]} Kf4 {[%emt 0:00:03]} 68. b4 {[%emt 0:00:37]} axb4 {[%emt 0:02:21]} 69. axb4 {[%emt 0:00:00]} Ke5 {[%emt 0:00:40]} 1/2-1/2

[Event "Klatov Bazar Besiny Cup 2018"]
[Site "Klatovy"]
[Date "2018.07.03"]
[Round "4"]
[White "Vyprachticky, David"]
[Black "Pulpan, Jakub"]
[Result "1-0"]
[ECO "D35"]
[WhiteElo "2301"]
[BlackElo "2386"]
[Annotator "NA"]
[PlyCount "37"]
[EventDate "2018.07.01"]
[EventType "swiss"]
[EventCountry "CZE"]
[SourceTitle "playchess.com"]
[Source "ChessBase"]
[SourceQuality "1"]
[TimeControl "40/7200:0"]

1. d4 {[%emt 0:00:00]} Nf6 {[%emt 0:00:00]} 2. c4 {[%emt 0:00:00]} e6 {[%emt 0:00:00]} 3. Nc3 {[%emt 0:00:00]} d5 {[%emt 0:00:00]} 4. cxd5 {[%emt 0:01:16]} Nxd5 {[%emt 0:00:00]} 5. e4 {[%emt 0:00:00]} Nxc3 {[%emt 0:00:00]} 6. bxc3 {[%emt 0:00:00]} c5 {[%emt 0:00:00]} 7. Nf3 {[%emt 0:02:44]} cxd4 {[%emt 0:00:00]} 8. cxd4 {[%emt 0:00:00]} Bb4+ {[%emt 0:00:00]} 9. Bd2 {[%emt 0:00:00]} Bxd2+ {[%emt 0:00:00]} 10. Qxd2 {[%emt 0:00:00]} O-O {[%emt 0:00:00]} 11. Rc1 {[%emt 0:06:37]} b6 {[%emt 0:02:55]} 12. Bd3 {[%emt 0:01:27]} Bb7 {[%emt 0:00:00]} 13. Qe3 {[%emt 0:03:31]} Nd7 {[%emt 0:03:55]} 14. e5 {[%emt 0:01:12]} f6 {[%emt 0:28:11]} 15. exf6 {[%emt 0:26:08]} Qxf6 {[%emt 0:03:47]} 16. Ng5 {[%emt 0:01:48]} g6 {[%emt 0:08:06]} 17. Rc7 {[%emt 0:06:01]} Nc5 {[%emt 0:13:21]} 18. Bb1 {[%emt 0:18:08]} Rfc8 {[%emt 0:11:53]} 19. Rf7 {[%emt 0:14:12]} 1-0

[Event "Klatov Bazar Besiny Cup 2018"]
[Site "Klatovy"]
[Date "2018.07.03"]
[Round "4"]
[White "Jurek, Josef"]
[Black "Vevera, Radek"]
[Result "1-0"]
[ECO "A48"]
[WhiteElo "2277"]
[BlackElo "2064"]
[Annotator "NA"]
[PlyCount "51"]
[EventDate "2018.07.01"]
[EventType "swiss"]
[EventCountry "CZE"]
[SourceTitle "playchess.com"]
[Source "ChessBase"]
[SourceQuality "1"]
[TimeControl "40/7200:0"]

1. d4 {[%emt 0:00:00]} Nf6 {[%emt 0:00:00]} 2. Nf3 {[%emt 0:00:00]} g6 {[%emt 0:00:00]} 3. c4 {[%emt 0:00:00]} Bg7 {[%emt 0:00:00]} 4. g3 {[%emt 0:00:00]} O-O {[%emt 0:00:00]} 5. Bg2 {[%emt 0:00:00]} c5 {[%emt 0:01:36]} 6. Nc3 {[%emt 0:00:00]} cxd4 {[%emt 0:03:49]} 7. Nxd4 {[%emt 0:00:00]} Qc7 {[%emt 0:02:43]} 8. b3 {[%emt 0:00:00]} d5 {[%emt 0:00:58]} 9. Ndb5 {[%emt 0:00:31]} Qa5 {[%emt 0:01:04]} 10. Bd2 {[%emt 0:00:00]} dxc4 {[%emt 0:02:28]} 11. bxc4 {[%emt 0:00:00]} Nc6 {[%emt 0:05:44]} 12. Nd5 {[%emt 0:07:26]} Qd8 {[%emt 0:00:00]} 13. O-O {[%emt 0:02:56]} Bf5 {[%emt 0:16:34]} 14. Bc3 {[%emt 0:06:45]} Rc8 {[%emt 0:04:19]} 15. Rc1 {[%emt 0:14:56]} Qd7 {[%emt 0:17:23]} 16. Qb3 {[%emt 0:13:34]} Nxd5 {[%emt 0:04:38]} 17. cxd5 {[%emt 0:06:32]} Ne5 {[%emt 0:03:58]} 18. f4 {[%emt 0:07:25]} Rc5 {[%emt 0:08:41]} 19. Nxa7 {[%emt 0:05:08]} Ra8 {[%emt 0:02:57]} 20. fxe5 {[%emt 0:08:24]} Rxa7 {[%emt 0:00:08]} 21. e6 {[%emt 0:08:43]} Qc7 {[%emt 0:08:04]} 22. exf7+ {[%emt 0:02:14]} Kf8 {[%emt 0:00:00]} 23. Bxg7+ {[%emt 0:01:06]} Kxg7 {[%emt 0:00:00]} 24. Qe3 {[%emt 0:02:09]} Rxc1 {[%emt 0:02:28]} 25. Rxc1 {[%emt 0:00:53]} Qb8 {[%emt 0:00:00]} 26. g4 {[%emt 0:02:25]} 1-0

[Event "Klatov Bazar Besiny Cup 2018"]
[Site "Klatovy"]
[Date "2018.07.03"]
[Round "4"]
[White "Formanek, Martin"]
[Black "Kaderabek, Jiri"]
[Result "1/2-1/2"]
[ECO "A05"]
[WhiteElo "2267"]
[BlackElo "2125"]
[Annotator "NA"]
[PlyCount "39"]
[EventDate "2018.07.01"]
[EventType "swiss"]
[EventCountry "CZE"]
[SourceTitle "playchess.com"]
[Source "ChessBase"]
[SourceQuality "1"]
[TimeControl "40/7200:0"]

1. Nf3 {[%emt 0:00:00]} Nf6 {[%emt 0:00:00]} 2. g3 {[%emt 0:00:00]} d5 {[%emt 0:00:00]} 3. Bg2 {[%emt 0:00:00]} c6 {[%emt 0:00:00]} 4. O-O {[%emt 0:00:00]} Bf5 {[%emt 0:00:00]} 5. c4 {[%emt 0:00:00]} Nbd7 {[%emt 0:01:42]} 6. d3 {[%emt 0:02:03]} dxc4 {[%emt 0:05:17]} 7. dxc4 {[%emt 0:03:16]} e5 {[%emt 0:12:59]} 8. Nc3 {[%emt 0:11:53]} Be7 {[%emt 0:07:15]} 9. b3 {[%emt 0:05:52]} h6 {[%emt 0:06:13]} 10. h3 {[%emt 0:05:13]} Bh7 {[%emt 0:04:45]} 11. Be3 {[%emt 0:04:35]} O-O {[%emt 0:03:24]} 12. Qc1 {[%emt 0:05:00]} Qc7 {[%emt 0:06:17]} 13. Qb2 {[%emt 0:03:35]} Rfe8 {[%emt 0:04:46]} 14. b4 {[%emt 0:02:41]} Ne4 {[%emt 0:04:54]} 15. Nd2 {[%emt 0:03:13]} Nxd2 {[%emt 0:00:26]} 16. Bxd2 {[%emt 0:00:00]} Nb6 {[%emt 0:14:24]} 17. c5 {[%emt 0:12:26]} Nc4 {[%emt 0:00:00]} 18. Qc1 {[%emt 0:00:00]} Nxd2 {[%emt 0:08:37]} 19. Qxd2 {[%emt 0:00:00]} a5 {[%emt 0:00:00]} 20. a3 {[%emt 0:00:18]} 1/2-1/2

[Event "Klatov Bazar Besiny Cup 2018"]
[Site "Klatovy"]
[Date "2018.07.03"]
[Round "4"]
[White "Kopta, Pavel"]
[Black "Simek, Petr"]
[Result "1/2-1/2"]
[ECO "D43"]
[WhiteElo "2210"]
[BlackElo "2354"]
[Annotator "NA"]
[PlyCount "24"]
[EventDate "2018.07.01"]
[EventType "swiss"]
[EventCountry "CZE"]
[SourceTitle "playchess.com"]
[Source "ChessBase"]
[SourceQuality "1"]
[TimeControl "40/7200:0"]

1. d4 {[%emt 0:00:00]} d5 {[%emt 0:00:00]} 2. c4 {[%emt 0:00:00]} c6 {[%emt 0:00:00]} 3. Nf3 {[%emt 0:00:00]} Nf6 {[%emt 0:00:00]} 4. Nc3 {[%emt 0:00:00]} e6 {[%emt 0:00:00]} 5. cxd5 {[%emt 0:00:00]} exd5 {[%emt 0:00:00]} 6. Bg5 {[%emt 0:00:00]} Nbd7 {[%emt 0:00:00]} 7. e3 {[%emt 0:00:00]} h6 {[%emt 0:00:00]} 8. Bh4 {[%emt 0:00:00]} g5 {[%emt 0:00:00]} 9. Bg3 {[%emt 0:00:00]} Nh5 {[%emt 0:00:00]} 10. Bd3 {[%emt 0:00:00]} Nxg3 {[%emt 0:00:00]} 11. hxg3 {[%emt 0:00:00]} Bg7 {[%emt 0:00:00]} 12. Qc2 {[%emt 0:00:00]} Nb6 {[%emt 0:00:00]} 1/2-1/2

[Event "Klatov Bazar Besiny Cup 2018"]
[Site "Klatovy"]
[Date "2018.07.03"]
[Round "4"]
[White "Tscharotschkin, Michael"]
[Black "Parizek, Vojtech"]
[Result "0-1"]
[ECO "B22"]
[WhiteElo "2124"]
[BlackElo "2242"]
[Annotator "NA"]
[PlyCount "44"]
[EventDate "2018.07.01"]
[EventType "swiss"]
[EventCountry "CZE"]
[SourceTitle "playchess.com"]
[Source "ChessBase"]
[SourceQuality "1"]
[TimeControl "40/7200:0"]

1. e4 {[%emt 0:00:00]} c5 {[%emt 0:00:00]} 2. c3 {[%emt 0:00:00]} d5 {[%emt 0:00:00]} 3. exd5 {[%emt 0:00:00]} Qxd5 {[%emt 0:00:00]} 4. d4 {[%emt 0:00:00]} Nc6 {[%emt 0:00:00]} 5. Nf3 {[%emt 0:00:00]} Bf5 {[%emt 0:00:00]} 6. Na3 {[%emt 0:03:26]} cxd4 {[%emt 0:00:00]} 7. Nb5 {[%emt 0:07:28]} O-O-O {[%emt 0:02:55]} 8. cxd4 {[%emt 0:02:00]} e5 {[%emt 0:05:35]} 9. Nc3 {[%emt 0:06:26]} Qa5 {[%emt 0:09:49]} 10. Bb5 {[%emt 0:10:01]} exd4 {[%emt 0:09:11]} 11. O-O {[%emt 0:06:53]} dxc3 {[%emt 0:02:07]} 12. Qe2 {[%emt 0:00:00]} Nf6 {[%emt 0:05:35]} 13. Be3 {[%emt 0:06:09]} a6 {[%emt 0:05:22]} 14. Bc4 {[%emt 0:11:35]} b5 {[%emt 0:02:01]} 15. Rfc1 {[%emt 0:01:54]} bxc4 {[%emt 0:03:35]} 16. Qxc4 {[%emt 0:00:09]} Be4 {[%emt 0:01:58]} 17. Rxc3 {[%emt 0:00:16]} Qb5 {[%emt 0:06:58]} 18. Qxf7 {[%emt 0:04:29]} Qd5 {[%emt 0:01:45]} 19. Qa7 {[%emt 0:06:23]} Qd1+ {[%emt 0:04:50]} 20. Ne1 {[%emt 0:00:00]} Qxa1 {[%emt 0:00:27]} 21. Qxa6+ {[%emt 0:00:36]} Kd7 {[%emt 0:00:39]} 22. Bc1 {[%emt 0:04:56]} Bb4 {[%emt 0:03:06]} 0-1